[Event "Titled Tuesday Blitz June 21 Early 2022"]
[White "Timofeev, Artyom"]
[Black "Martinez Alcantara, Jose Eduardo"]
[WhiteFideId "4140419"]
[BlackFideId "3805662"]
[WhiteElo "2578"]
[BlackElo "2703"]
[Result "0-1"]
[Round "10"]
[TimeControl "180+1"]
[Date "2022.06.21"]
[WhiteClock "0:00:16"]
[BlackClock "0:00:10"]

1. e4 {[%clk 0:03:00]}  c5 {[%clk 0:03:00]} 2. Nc3 {[%clk 0:02:59]}  d6 {[%clk 0:03:01]} 3. Nf3 {[%clk 0:02:59]}  Nf6 {[%clk 0:03:00]} 4. d4 {[%clk 0:02:59]}  cxd4 {[%clk 0:03:01]} 5. Nxd4 {[%clk 0:02:59]}  Nc6 {[%clk 0:03:01]} 6. Bg5 {[%clk 0:02:57]}  e6 {[%clk 0:03:02]} 7. Qd2 {[%clk 0:02:57]}  a6 {[%clk 0:03:03]} 8. O-O-O {[%clk 0:02:57]}  Bd7 {[%clk 0:03:03]} 9. f4 {[%clk 0:02:57]}  Be7 {[%clk 0:03:03]} 10. Nf3 {[%clk 0:02:56]}  b5 {[%clk 0:03:03]} 11. Bxf6 {[%clk 0:02:55]}  gxf6 {[%clk 0:03:03]} 12. Kb1 {[%clk 0:02:52]}  Qa5 {[%clk 0:03:04]} 13. f5 {[%clk 0:02:46]}  h5 {[%clk 0:03:04]} 14. Bd3 {[%clk 0:02:42]}  O-O-O {[%clk 0:03:03]} 15. Qf2 {[%clk 0:02:38]}  Kb7 {[%clk 0:03:03]} 16. Ne2 {[%clk 0:02:37]}  Qb6 {[%clk 0:03:03]} 17. Qh4 {[%clk 0:02:31]}  Ne5 {[%clk 0:02:48]} 18. Nf4 {[%clk 0:02:29]}  Rdg8 {[%clk 0:02:09]} 19. h3 {[%clk 0:02:09]}  Bc8 {[%clk 0:02:04]} 20. Be2 {[%clk 0:02:05]}  Kb8 {[%clk 0:01:56]} 21. Nd4 {[%clk 0:02:03]}  exf5 {[%clk 0:01:18]} 22. Nxf5 {[%clk 0:01:55]}  Bd8 {[%clk 0:01:12]} 23. Nxd6 {[%clk 0:01:53]}  Be6 {[%clk 0:01:09]} 24. Nf5 {[%clk 0:01:42]}  Qc5 {[%clk 0:01:03]} 25. Nd4 {[%clk 0:01:33]}  Bc8 {[%clk 0:00:57]} 26. Qe1 {[%clk 0:01:31]}  Bb7 {[%clk 0:00:56]} 27. Bf3 {[%clk 0:01:28]}  Nc4 {[%clk 0:00:56]} 28. Nd5 {[%clk 0:01:18]}  Ba5 {[%clk 0:00:40]} 29. Nb3 {[%clk 0:01:18]}  Qxd5 {[%clk 0:00:25]} 30. exd5 {[%clk 0:01:01]}  Bxe1 {[%clk 0:00:25]} 31. Rhxe1 {[%clk 0:01:01]}  Ne5 {[%clk 0:00:26]} 32. Nc5 {[%clk 0:01:00]}  Rd8 {[%clk 0:00:25]} 33. d6 {[%clk 0:00:50]}  Bc8 {[%clk 0:00:14]} 34. Rxe5 {[%clk 0:00:41]}  fxe5 {[%clk 0:00:14]} 35. d7 {[%clk 0:00:42]}  f5 {[%clk 0:00:10]} 36. dxc8=Q+ {[%clk 0:00:27]}  Kxc8 {[%clk 0:00:10]} 37. Rf1 {[%clk 0:00:20]}  e4 {[%clk 0:00:05]} 38. Bd1 {[%clk 0:00:20]}  a5 {[%clk 0:00:03]} 39. Kc1 {[%clk 0:00:20]}  Rd5 {[%clk 0:00:04]} 40. Ne6 {[%clk 0:00:20]}  h4 {[%clk 0:00:04]} 41. Nf4 {[%clk 0:00:20]}  Rd6 {[%clk 0:00:04]} 42. Be2 {[%clk 0:00:20]}  b4 {[%clk 0:00:04]} 43. Rd1 {[%clk 0:00:20]}  Rxd1+ {[%clk 0:00:03]} 44. Kxd1 {[%clk 0:00:20]}  Kc7 {[%clk 0:00:04]} 45. Kd2 {[%clk 0:00:21]}  Kd6 {[%clk 0:00:04]} 46. Ke3 {[%clk 0:00:21]}  Rc8 {[%clk 0:00:05]} 47. Kd2 {[%clk 0:00:21]}  Rg8 {[%clk 0:00:05]} 48. c3 {[%clk 0:00:20]}  Ke5 {[%clk 0:00:04]} 49. Ke3 {[%clk 0:00:13]}  Rg3+ {[%clk 0:00:03]} 50. Bf3 {[%clk 0:00:14]}  exf3 {[%clk 0:00:04]} 51. gxf3 {[%clk 0:00:14]}  bxc3 {[%clk 0:00:04]} 52. bxc3 {[%clk 0:00:14]}  Rg1 {[%clk 0:00:05]} 53. c4 {[%clk 0:00:14]}  Kd6 {[%clk 0:00:03]} 54. Nd3 {[%clk 0:00:14]}  Ra1 {[%clk 0:00:03]} 55. c5+ {[%clk 0:00:13]}  Kc6 {[%clk 0:00:04]} 56. Kf4 {[%clk 0:00:13]}  Rxa2 {[%clk 0:00:05]} 57. Kxf5 {[%clk 0:00:14]}  Ra3 {[%clk 0:00:03]} 58. Ke4 {[%clk 0:00:13]}  Ra1 {[%clk 0:00:04]} 59. f4 {[%clk 0:00:14]}  a4 {[%clk 0:00:04]} 60. f5 {[%clk 0:00:14]}  a3 {[%clk 0:00:05]} 61. f6 {[%clk 0:00:14]}  Rf1 {[%clk 0:00:05]} 62. Ke5 {[%clk 0:00:14]}  a2 {[%clk 0:00:05]} 63. Nb4+ {[%clk 0:00:14]}  Kxc5 {[%clk 0:00:06]} 64. Nxa2 {[%clk 0:00:14]}  Rf3 {[%clk 0:00:06]} 65. Ke6 {[%clk 0:00:13]}  Re3+ {[%clk 0:00:06]} 66. Kf5 {[%clk 0:00:13]}  Rxh3 {[%clk 0:00:06]} 67. Kg4 {[%clk 0:00:13]}  Rh2 {[%clk 0:00:04]} 68. Nc3 {[%clk 0:00:12]}  Kd6 {[%clk 0:00:03]} 69. Ne4+ {[%clk 0:00:12]}  Ke6 {[%clk 0:00:03]} 70. Ng5+ {[%clk 0:00:12]}  Kxf6 {[%clk 0:00:03]} 71. Nf3 {[%clk 0:00:12]}  Rh1 {[%clk 0:00:03]} 72. Nxh4 {[%clk 0:00:12]}  Ke5 {[%clk 0:00:04]} 73. Nf3+ {[%clk 0:00:12]}  Ke4 {[%clk 0:00:04]} 74. Ng5+ {[%clk 0:00:13]}  Ke3 {[%clk 0:00:05]} 75. Kf5 {[%clk 0:00:13]}  Rh5 {[%clk 0:00:05]} 76. Kg6 {[%clk 0:00:13]}  Rh1 {[%clk 0:00:05]} 77. Kf5 {[%clk 0:00:14]}  Ra1 {[%clk 0:00:06]} 78. Ne6 {[%clk 0:00:13]}  Ra5+ {[%clk 0:00:07]} 79. Kf6 {[%clk 0:00:13]}  Ke4 {[%clk 0:00:08]} 80. Ng5+ {[%clk 0:00:14]}  Kd5 {[%clk 0:00:08]} 81. Kf5 {[%clk 0:00:13]}  Ra1 {[%clk 0:00:09]} 82. Kf4 {[%clk 0:00:14]}  Rf1+ {[%clk 0:00:09]} 83. Nf3 {[%clk 0:00:14]}  Rf2 {[%clk 0:00:09]} 84. Ke3 {[%clk 0:00:14]}  Ra2 {[%clk 0:00:09]} 85. Kf4 {[%clk 0:00:15]}  Ra3 {[%clk 0:00:10]} 86. Kf5 {[%clk 0:00:16]}  Rxf3+ {[%clk 0:00:10]} 0-1


[Site "https://www.chess.com"]

[Event "Titled Tuesday Blitz June 21 Early 2022"]
[White "Tisaj, Domen"]
[Black "Yedidia, Daniel"]
[WhiteFideId "14628708"]
[BlackFideId "30905907"]
[WhiteElo "2326"]
[BlackElo "2611"]
[Result "1/2-1/2"]
[Round "10"]
[TimeControl "180+1"]
[Date "2022.06.21"]
[WhiteClock "0:00:06"]
[BlackClock "0:00:06"]

1. d4 {[%clk 0:03:00]}  Nf6 {[%clk 0:03:00]} 2. c4 {[%clk 0:03:01]}  e6 {[%clk 0:03:00]} 3. g3 {[%clk 0:03:01]}  c5 {[%clk 0:02:59]} 4. d5 {[%clk 0:03:01]}  exd5 {[%clk 0:02:58]} 5. cxd5 {[%clk 0:03:02]}  d6 {[%clk 0:02:59]} 6. Bg2 {[%clk 0:03:01]}  g6 {[%clk 0:02:59]} 7. Nc3 {[%clk 0:03:02]}  Bg7 {[%clk 0:03:00]} 8. Nf3 {[%clk 0:03:02]}  O-O {[%clk 0:03:00]} 9. O-O {[%clk 0:03:03]}  Re8 {[%clk 0:02:58]} 10. Nd2 {[%clk 0:03:03]}  a6 {[%clk 0:02:57]} 11. a4 {[%clk 0:03:03]}  Nbd7 {[%clk 0:02:56]} 12. Nc4 {[%clk 0:03:01]}  Ne5 {[%clk 0:02:54]} 13. Nxe5 {[%clk 0:03:00]}  Rxe5 {[%clk 0:02:54]} 14. Bf4 {[%clk 0:03:01]}  Re8 {[%clk 0:02:53]} 15. a5 {[%clk 0:03:00]}  Nh5 {[%clk 0:02:50]} 16. Bc1 {[%clk 0:02:58]}  Bd7 {[%clk 0:02:49]} 17. Na4 {[%clk 0:02:55]}  Bb5 {[%clk 0:02:48]} 18. Re1 {[%clk 0:02:54]}  Qxa5 {[%clk 0:02:42]} 19. g4 {[%clk 0:02:44]}  Nf6 {[%clk 0:02:40]} 20. Bf4 {[%clk 0:02:42]}  Qc7 {[%clk 0:02:18]} 21. e4 {[%clk 0:02:42]}  Rad8 {[%clk 0:02:14]} 22. Nc3 {[%clk 0:02:37]}  Bd7 {[%clk 0:02:10]} 23. e5 {[%clk 0:02:36]}  dxe5 {[%clk 0:02:07]} 24. d6 {[%clk 0:02:36]}  Qb8 {[%clk 0:01:55]} 25. Bxe5 {[%clk 0:02:36]}  Nxg4 {[%clk 0:01:50]} 26. Bxg7 {[%clk 0:02:26]}  Kxg7 {[%clk 0:01:46]} 27. h3 {[%clk 0:02:07]}  Nh6 {[%clk 0:01:40]} 28. Qd5 {[%clk 0:02:04]}  Nf5 {[%clk 0:01:35]} 29. Red1 {[%clk 0:02:00]}  Bc6 {[%clk 0:01:34]} 30. Qxc5 {[%clk 0:02:00]}  Bxg2 {[%clk 0:01:33]} 31. Kxg2 {[%clk 0:02:01]}  Rxd6 {[%clk 0:01:26]} 32. Rxd6 {[%clk 0:01:54]}  Qxd6 {[%clk 0:01:26]} 33. Qxd6 {[%clk 0:01:53]}  Nxd6 {[%clk 0:01:27]} 34. Rd1 {[%clk 0:01:53]}  Nf5 {[%clk 0:01:16]} 35. Rd7 {[%clk 0:01:52]}  b5 {[%clk 0:01:15]} 36. Ra7 {[%clk 0:01:51]}  b4 {[%clk 0:01:15]} 37. Nd5 {[%clk 0:01:51]}  Re2 {[%clk 0:01:07]} 38. Nxb4 {[%clk 0:01:45]}  Rxb2 {[%clk 0:01:05]} 39. Nc6 {[%clk 0:01:24]}  Ne3+ {[%clk 0:01:00]} 40. Kg1 {[%clk 0:01:22]}  Nd1 {[%clk 0:00:48]} 41. f3 {[%clk 0:01:22]}  Rb6 {[%clk 0:00:34]} 42. Ne5 {[%clk 0:01:07]}  Rf6 {[%clk 0:00:35]} 43. Kg2 {[%clk 0:01:05]}  Ne3+ {[%clk 0:00:34]} 44. Kf2 {[%clk 0:01:05]}  Nc2 {[%clk 0:00:27]} 45. Kg3 {[%clk 0:01:01]}  Nd4 {[%clk 0:00:23]} 46. Rd7 {[%clk 0:00:44]}  Nf5+ {[%clk 0:00:20]} 47. Kf2 {[%clk 0:00:42]}  Nd6 {[%clk 0:00:18]} 48. Ng4 {[%clk 0:00:39]}  Re6 {[%clk 0:00:16]} 49. Ra7 {[%clk 0:00:40]}  Nb5 {[%clk 0:00:13]} 50. Ra8 {[%clk 0:00:40]}  h5 {[%clk 0:00:13]} 51. Ne3 {[%clk 0:00:40]}  Nd4 {[%clk 0:00:14]} 52. Nd5 {[%clk 0:00:38]}  Re5 {[%clk 0:00:13]} 53. Rd8 {[%clk 0:00:30]}  h4 {[%clk 0:00:13]} 54. Nc7 {[%clk 0:00:27]}  Ne6 {[%clk 0:00:07]} 55. Ne8+ {[%clk 0:00:27]}  Kh6 {[%clk 0:00:07]} 56. Ra8 {[%clk 0:00:26]}  a5 {[%clk 0:00:07]} 57. Nf6 {[%clk 0:00:25]}  Kg7 {[%clk 0:00:06]} 58. Ne8+ {[%clk 0:00:24]}  Kh6 {[%clk 0:00:07]} 59. Nf6 {[%clk 0:00:24]}  Rf5 {[%clk 0:00:08]} 60. Ng4+ {[%clk 0:00:20]}  Kg7 {[%clk 0:00:08]} 61. Ne3 {[%clk 0:00:20]}  Rb5 {[%clk 0:00:07]} 62. Nc4 {[%clk 0:00:18]}  Nf4 {[%clk 0:00:07]} 63. Nd6 {[%clk 0:00:17]}  Rg5 {[%clk 0:00:05]} 64. Ra7 {[%clk 0:00:14]}  Nxh3+ {[%clk 0:00:05]} 65. Ke3 {[%clk 0:00:14]}  Re5+ {[%clk 0:00:04]} 66. Kd4 {[%clk 0:00:13]}  Re6 {[%clk 0:00:03]} 67. Nxf7 {[%clk 0:00:13]}  Kf6 {[%clk 0:00:03]} 68. Nh6 {[%clk 0:00:08]}  Kg5 {[%clk 0:00:02]} 69. Ng4 {[%clk 0:00:05]}  Kf4 {[%clk 0:00:02]} 70. Rxa5 {[%clk 0:00:05]}  Kxf3 {[%clk 0:00:02]} 71. Ne5+ {[%clk 0:00:05]}  Kg3 {[%clk 0:00:03]} 72. Ra3+ {[%clk 0:00:05]}  Kf4 {[%clk 0:00:03]} 73. Rxh3 {[%clk 0:00:04]}  Rd6+ {[%clk 0:00:04]} 74. Kc5 {[%clk 0:00:04]}  Re6 {[%clk 0:00:02]} 75. Nd3+ {[%clk 0:00:04]}  Kg4 {[%clk 0:00:03]} 76. Rh2 {[%clk 0:00:03]}  g5 {[%clk 0:00:03]} 77. Rg2+ {[%clk 0:00:03]}  Kh5 {[%clk 0:00:04]} 78. Rg1 {[%clk 0:00:04]}  Re3 {[%clk 0:00:04]} 79. Kd4 {[%clk 0:00:04]}  Rg3 {[%clk 0:00:04]} 80. Rxg3 {[%clk 0:00:04]}  hxg3 {[%clk 0:00:05]} 81. Ke3 {[%clk 0:00:05]}  Kg4 {[%clk 0:00:06]} 82. Ne1 {[%clk 0:00:05]}  Kh3 {[%clk 0:00:07]} 83. Kf3 {[%clk 0:00:05]}  g4+ {[%clk 0:00:07]} 84. Kf4 {[%clk 0:00:06]}  g2 {[%clk 0:00:07]} 85. Nxg2 {[%clk 0:00:06]}  Kxg2 {[%clk 0:00:06]} 86. Kxg4 {[%clk 0:00:06]} 1/2-1/2


[Site "https://www.chess.com"]

[Event "Titled Tuesday Blitz June 21 Early 2022"]
[White "Tologon tegin, Semetei"]
[Black "Rustemov, Alexander"]
[WhiteFideId "13800574"]
[BlackFideId "4119002"]
[WhiteElo "2174"]
[BlackElo "2736"]
[Result "1/2-1/2"]
[Round "10"]
[TimeControl "180+1"]
[Date "2022.06.21"]
[WhiteClock "0:00:13"]
[BlackClock "0:00:11"]

1. e4 {[%clk 0:03:00]}  e6 {[%clk 0:02:59]} 2. d3 {[%clk 0:02:58]}  d5 {[%clk 0:03:00]} 3. Nd2 {[%clk 0:02:57]}  c5 {[%clk 0:03:00]} 4. Ngf3 {[%clk 0:02:57]}  Nc6 {[%clk 0:03:01]} 5. g3 {[%clk 0:02:57]}  g6 {[%clk 0:03:01]} 6. Bg2 {[%clk 0:02:58]}  Bg7 {[%clk 0:03:02]} 7. O-O {[%clk 0:02:58]}  Nge7 {[%clk 0:03:03]} 8. Re1 {[%clk 0:02:57]}  b6 {[%clk 0:03:03]} 9. c3 {[%clk 0:02:57]}  h6 {[%clk 0:03:01]} 10. Nf1 {[%clk 0:02:47]}  dxe4 {[%clk 0:02:51]} 11. dxe4 {[%clk 0:02:47]}  Qxd1 {[%clk 0:02:52]} 12. Rxd1 {[%clk 0:02:48]}  Bb7 {[%clk 0:02:39]} 13. h4 {[%clk 0:02:47]}  Rd8 {[%clk 0:02:27]} 14. Bf4 {[%clk 0:02:47]}  f6 {[%clk 0:02:15]} 15. N3d2 {[%clk 0:01:46]}  g5 {[%clk 0:02:13]} 16. hxg5 {[%clk 0:01:45]}  hxg5 {[%clk 0:02:14]} 17. Be3 {[%clk 0:01:46]}  Ba6 {[%clk 0:02:01]} 18. Nb3 {[%clk 0:01:34]}  Ne5 {[%clk 0:01:56]} 19. Rxd8+ {[%clk 0:01:32]}  Kxd8 {[%clk 0:01:57]} 20. Rd1+ {[%clk 0:01:32]}  Kc7 {[%clk 0:01:57]} 21. Nc1 {[%clk 0:01:24]}  g4 {[%clk 0:01:52]} 22. b3 {[%clk 0:01:21]}  N7g6 {[%clk 0:01:48]} 23. c4 {[%clk 0:01:20]}  Bb7 {[%clk 0:01:46]} 24. Ne2 {[%clk 0:01:12]}  f5 {[%clk 0:01:36]} 25. Nf4 {[%clk 0:01:05]}  Nxf4 {[%clk 0:01:20]} 26. Bxf4 {[%clk 0:01:03]}  Bxe4 {[%clk 0:01:07]} 27. Bxe4 {[%clk 0:01:00]}  fxe4 {[%clk 0:01:08]} 28. Re1 {[%clk 0:00:59]}  Kd7 {[%clk 0:00:46]} 29. Bxe5 {[%clk 0:00:57]}  Bxe5 {[%clk 0:00:46]} 30. Rxe4 {[%clk 0:00:58]}  Bd4 {[%clk 0:00:43]} 31. Rxg4 {[%clk 0:00:55]}  Rf8 {[%clk 0:00:43]} 32. Rf4 {[%clk 0:00:48]}  Rd8 {[%clk 0:00:36]} 33. Kg2 {[%clk 0:00:40]}  a6 {[%clk 0:00:36]} 34. Kf3 {[%clk 0:00:38]}  b5 {[%clk 0:00:36]} 35. Ne3 {[%clk 0:00:34]}  Kd6 {[%clk 0:00:35]} 36. Rf7 {[%clk 0:00:31]}  Ra8 {[%clk 0:00:29]} 37. Ke4 {[%clk 0:00:27]}  b4 {[%clk 0:00:29]} 38. Nc2 {[%clk 0:00:19]}  Bc3 {[%clk 0:00:29]} 39. a4 {[%clk 0:00:11]}  bxa3 {[%clk 0:00:28]} 40. Nxa3 {[%clk 0:00:11]}  Rb8 {[%clk 0:00:29]} 41. Ra7 {[%clk 0:00:11]}  Rxb3 {[%clk 0:00:28]} 42. Rxa6+ {[%clk 0:00:10]}  Ke7 {[%clk 0:00:28]} 43. Nb5 {[%clk 0:00:11]}  Be1 {[%clk 0:00:24]} 44. Ra7+ {[%clk 0:00:09]}  Kf6 {[%clk 0:00:24]} 45. Ra3 {[%clk 0:00:08]}  Rxa3 {[%clk 0:00:18]} 46. Nxa3 {[%clk 0:00:08]}  Bxf2 {[%clk 0:00:19]} 47. g4 {[%clk 0:00:06]}  Kg5 {[%clk 0:00:17]} 48. Ke5 {[%clk 0:00:06]}  Kxg4 {[%clk 0:00:16]} 49. Kxe6 {[%clk 0:00:07]}  Kf3 {[%clk 0:00:14]} 50. Kd5 {[%clk 0:00:07]}  Ke2 {[%clk 0:00:14]} 51. Nb5 {[%clk 0:00:06]}  Kd3 {[%clk 0:00:14]} 52. Nd6 {[%clk 0:00:07]}  Bg1 {[%clk 0:00:11]} 53. Ne4 {[%clk 0:00:08]}  Kc2 {[%clk 0:00:10]} 54. Nxc5 {[%clk 0:00:09]}  Kc3 {[%clk 0:00:10]} 55. Na6 {[%clk 0:00:08]}  Kb3 {[%clk 0:00:10]} 56. Nc7 {[%clk 0:00:08]}  Kb4 {[%clk 0:00:10]} 57. Ne6 {[%clk 0:00:09]}  Ka5 {[%clk 0:00:09]} 58. Nd4 {[%clk 0:00:09]}  Kb6 {[%clk 0:00:09]} 59. c5+ {[%clk 0:00:10]}  Kc7 {[%clk 0:00:10]} 60. Ne6+ {[%clk 0:00:10]}  Kd7 {[%clk 0:00:10]} 61. c6+ {[%clk 0:00:10]}  Kc8 {[%clk 0:00:10]} 62. Nc5 {[%clk 0:00:10]}  Bxc5 {[%clk 0:00:09]} 63. Kxc5 {[%clk 0:00:10]}  Kc7 {[%clk 0:00:10]} 64. Kb5 {[%clk 0:00:10]}  Kc8 {[%clk 0:00:10]} 65. Kb6 {[%clk 0:00:10]}  Kb8 {[%clk 0:00:11]} 66. Kc5 {[%clk 0:00:11]}  Kc7 {[%clk 0:00:11]} 67. Kd5 {[%clk 0:00:11]}  Kc8 {[%clk 0:00:11]} 68. Kc4 {[%clk 0:00:12]}  Kc7 {[%clk 0:00:11]} 69. Kc5 {[%clk 0:00:12]}  Kc8 {[%clk 0:00:11]} 70. Kb4 {[%clk 0:00:12]}  Kc7 {[%clk 0:00:11]} 71. Kb5 {[%clk 0:00:13]}  Kc8 {[%clk 0:00:11]} 72. Kc5 {[%clk 0:00:13]}  Kc7 {[%clk 0:00:11]} 1/2-1/2


[Site "https://www.chess.com"]

[Event "Titled Tuesday Blitz June 21 Early 2022"]
[White "Toncheva, Nadya"]
[Black "Tregubov, Pavel V."]
[WhiteFideId "2924056"]
[BlackFideId "4115341"]
[WhiteElo "1888"]
[BlackElo "2341"]
[Result "0-1"]
[Round "10"]
[TimeControl "180+1"]
[Date "2022.06.22"]
[WhiteClock "0:00:03"]
[BlackClock "0:00:23"]

1. e4 {[%clk 0:03:00]}  c5 {[%clk 0:02:57]} 2. Nf3 {[%clk 0:02:59]}  e6 {[%clk 0:02:58]} 3. d4 {[%clk 0:02:59]}  cxd4 {[%clk 0:02:58]} 4. Nxd4 {[%clk 0:03:00]}  Nc6 {[%clk 0:02:58]} 5. Nc3 {[%clk 0:02:59]}  Nf6 {[%clk 0:02:59]} 6. Nxc6 {[%clk 0:02:55]}  bxc6 {[%clk 0:02:58]} 7. e5 {[%clk 0:02:55]}  Nd5 {[%clk 0:02:58]} 8. Ne4 {[%clk 0:02:56]}  Qc7 {[%clk 0:02:55]} 9. f4 {[%clk 0:02:55]}  Qb6 {[%clk 0:02:54]} 10. Qf3 {[%clk 0:02:52]}  Bb7 {[%clk 0:02:40]} 11. a3 {[%clk 0:02:29]}  c5 {[%clk 0:02:38]} 12. Bd3 {[%clk 0:02:12]}  Be7 {[%clk 0:02:19]} 13. c4 {[%clk 0:01:49]}  f5 {[%clk 0:02:18]} 14. cxd5 {[%clk 0:00:46]}  Bxd5 {[%clk 0:02:18]} 15. Qe2 {[%clk 0:00:38]}  c4 {[%clk 0:01:56]} 16. Nd6+ {[%clk 0:00:36]}  Bxd6 {[%clk 0:01:54]} 17. Bxf5 {[%clk 0:00:28]}  O-O {[%clk 0:01:19]} 18. Bxh7+ {[%clk 0:00:21]}  Kxh7 {[%clk 0:01:18]} 19. exd6 {[%clk 0:00:21]}  Qxd6 {[%clk 0:01:07]} 20. O-O {[%clk 0:00:20]}  Rf6 {[%clk 0:00:53]} 21. Be3 {[%clk 0:00:17]}  Qc6 {[%clk 0:00:39]} 22. Bd4 {[%clk 0:00:16]}  Rg6 {[%clk 0:00:38]} 23. Qh5+ {[%clk 0:00:15]}  Rh6 {[%clk 0:00:38]} 24. Qe2 {[%clk 0:00:12]}  Bxg2 {[%clk 0:00:35]} 25. Qxg2 {[%clk 0:00:08]}  Rg6 {[%clk 0:00:34]} 26. Rf3 {[%clk 0:00:08]}  Rxg2+ {[%clk 0:00:34]} 27. Kxg2 {[%clk 0:00:09]}  Rf8 {[%clk 0:00:32]} 28. Kf2 {[%clk 0:00:06]}  d6 {[%clk 0:00:29]} 29. Rg1 {[%clk 0:00:03]}  e5 {[%clk 0:00:28]} 30. Be3 {[%clk 0:00:03]}  Kg8 {[%clk 0:00:25]} 31. Rfg3 {[%clk 0:00:03]}  Rf7 {[%clk 0:00:24]} 32. Ke2 {[%clk 0:00:03]}  exf4 {[%clk 0:00:23]} 0-1


[Site "https://www.chess.com"]

[Event "Titled Tuesday Blitz June 21 Early 2022"]
[White "Vakhlamov, Igor L."]
[Black "Cunha, Lucas Aguiar"]
[WhiteFideId "24126748"]
[BlackFideId "2125404"]
[WhiteElo "2401"]
[BlackElo "2328"]
[Result "1-0"]
[Round "10"]
[TimeControl "180+1"]
[Date "2022.06.21"]
[WhiteClock "0:01:42"]
[BlackClock "0:00:13"]

1. e4 {[%clk 0:03:00]}  c5 {[%clk 0:02:45]} 2. Nf3 {[%clk 0:03:00]}  e6 {[%clk 0:02:46]} 3. Nc3 {[%clk 0:03:00]}  Nc6 {[%clk 0:02:45]} 4. Bb5 {[%clk 0:03:01]}  Nge7 {[%clk 0:02:42]} 5. O-O {[%clk 0:03:01]}  Qc7 {[%clk 0:02:35]} 6. d4 {[%clk 0:02:58]}  cxd4 {[%clk 0:02:34]} 7. Nxd4 {[%clk 0:02:58]}  Nxd4 {[%clk 0:02:26]} 8. Qxd4 {[%clk 0:02:59]}  Nc6 {[%clk 0:02:26]} 9. Bxc6 {[%clk 0:02:55]}  bxc6 {[%clk 0:02:20]} 10. e5 {[%clk 0:02:51]}  Rb8 {[%clk 0:02:17]} 11. Bf4 {[%clk 0:02:40]}  Rxb2 {[%clk 0:01:23]} 12. Ne4 {[%clk 0:02:21]}  Rb4 {[%clk 0:01:20]} 13. c4 {[%clk 0:02:18]}  c5 {[%clk 0:01:12]} 14. Qc3 {[%clk 0:02:16]}  Qc6 {[%clk 0:01:06]} 15. Rfe1 {[%clk 0:02:10]}  Bb7 {[%clk 0:01:01]} 16. a3 {[%clk 0:02:10]}  Rb6 {[%clk 0:00:58]} 17. f3 {[%clk 0:02:08]}  Be7 {[%clk 0:00:53]} 18. h4 {[%clk 0:01:58]}  O-O {[%clk 0:00:45]} 19. h5 {[%clk 0:01:58]}  f5 {[%clk 0:00:39]} 20. exf6 {[%clk 0:01:48]}  gxf6 {[%clk 0:00:39]} 21. Rad1 {[%clk 0:01:45]}  d5 {[%clk 0:00:20]} 22. cxd5 {[%clk 0:01:46]}  exd5 {[%clk 0:00:21]} 23. Ng3 {[%clk 0:01:47]}  d4 {[%clk 0:00:19]} 24. Qc4+ {[%clk 0:01:45]}  Qd5 {[%clk 0:00:16]} 25. Qxd5+ {[%clk 0:01:45]}  Bxd5 {[%clk 0:00:17]} 26. Rxe7 {[%clk 0:01:46]}  Rf7 {[%clk 0:00:14]} 27. Re8+ {[%clk 0:01:45]}  Rf8 {[%clk 0:00:14]} 28. Re7 {[%clk 0:01:45]}  Rf7 {[%clk 0:00:14]} 29. Nf5 {[%clk 0:01:45]}  Re6 {[%clk 0:00:12]} 30. Rxe6 {[%clk 0:01:41]}  Bxe6 {[%clk 0:00:13]} 31. Nh6+ {[%clk 0:01:42]} 1-0


[Site "https://www.chess.com"]